[Event "QCD-Prof Lim Kok Ann GM 2018"]
[Site "Singapore"]
[Date "2018.06.08"]
[Round "3"]
[White "Sukandar, Irine Kharisma"]
[Black "Lee, Qing Aun"]
[Result "1-0"]
[ECO "B40"]
[WhiteElo "2396"]
[BlackElo "2339"]
[Annotator "NA"]
[PlyCount "79"]
[EventDate "2018.06.12"]
[EventType "tourn"]
[SourceTitle "playchess.com"]
[Source "ChessBase"]
[SourceQuality "1"]
[TimeControl "5400+30"]

1. e4 {[%emt 0:00:18]} c5 {[%emt 0:00:47]} 2. Nf3 {[%emt 0:00:28]} e6 {[%emt 0:00:16]} 3. d4 {[%emt 0:00:18]} cxd4 {[%emt 0:00:17]} 4. Nxd4 {[%emt 0:00:06]} Nf6 {[%emt 0:00:17]} 5. Nc3 {[%emt 0:00:33]} Bb4 {[%emt 0:00:18]} 6. e5 {[%emt 0:00:22]} Nd5 {[%emt 0:00:10] LiveBook: 267 Games} 7. Qg4 {[%emt 0:00:20]} g6 {[%emt 0:00:23]} 8. Ndb5 {[%emt 0:01:09] B40: Sicilian: 2...e6, Unusual lines} (8. Bd2 f5 9. exf6 Nxf6 10. Qh4 O-O 11. O-O-O Be7 12. Bg5 d5 13. Bd3 Nc6 14. Rhe1 Nxd4 15. Qxd4 Bd7 16. f4 a6 17. f5 gxf5 18. Bxf5 Ne4 19. Bxe7 Qxe7 20. Bxe4 {1-0 (20) Novikov,S (2540)-Gheng,J (2334) Schwaebisch Gmuend 2018}) 8... Nc6 {[%emt 0:01:01]} 9. Qg3 {[%emt 0:04:45]} O-O {[%emt 0:01:28]} 10. a3 {[%emt 0:07:49]} Qa5 {[%emt 0:11:52] [#]} 11. Bd2 $1 {[%emt 0:05:14]} a6 {[%emt 0:05:25]} 12. Rc1 {[%emt 0:02:31]} Bxc3 $1 {[%emt 0:04:48]} 13. Nxc3 {[%emt 0:00:17]} Qc7 $1 {[%emt 0:00:20]} 14. Bh6 $146 {[%emt 0:11:11]} ({Predecessor:} 14. Ne4 Qxe5 15. Qxe5 Nxe5 {½-½ (38) Drude,D (2111)-Buhle,G (1996) GER email 2011}) 14... Rd8 {[%emt 0:16:30]} 15. Bg5 {[%emt 0:04:04]} Rf8 $1 {[%emt 0:01:19] [#]} 16. f4 {[%emt 0:04:04]} (16. Ne4 $1 $16) 16... f6 {[%emt 0:10:25]} 17. Nxd5 {[%emt 0:02:58]} Qa5+ {[%emt 0:00:48]} 18. b4 {[%emt 0:07:07]} Qxd5 {[%emt 0:00:09]} 19. Bxf6 {[%emt 0:00:20]} Qe4+ {[%emt 0:04:19]} 20. Kd1 {[%emt 0:00:42]} d6 {[%emt 0:02:37]} 21. Bd3 {[%emt 0:00:28]} Qd4 {[%emt 0:00:59]} 22. h4 {[%emt 0:07:15]} dxe5 {[%emt 0:02:11]} 23. fxe5 {[%emt 0:00:15]} Rxf6 {[%emt 0:00:09]} 24. exf6 {[%emt 0:00:07]} e5 {[%emt 0:00:04]} 25. h5 {[%emt 0:07:04]} Bg4+ {[%emt 0:02:36]} 26. Ke1 {[%emt 0:00:28]} e4 {[%emt 0:00:39]} 27. f7+ {[%emt 0:18:21]} Kf8 {[%emt 0:05:48]} 28. Be2 {[%emt 0:01:30]} e3 {[%emt 0:02:19]} 29. Rd1 {[%emt 0:01:34]} Qc3+ {[%emt 0:04:07]} 30. Kf1 {[%emt 0:00:02]} Bxe2+ {[%emt 0:04:11]} 31. Kxe2 {[%emt 0:00:01]} Nd4+ {[%emt 0:00:11]} 32. Rxd4 {[%emt 0:00:06]} Qxd4 {[%emt 0:00:05]} 33. Rd1 {[%emt 0:07:14]} Qe4 $16 {[%emt 0:09:14]} 34. Rd3 {[%emt 0:02:09]} Rc8 {[%emt 0:00:19]} 35. Qd6+ {[%emt 0:00:35]} Kg7 {[%emt 0:00:31]} 36. h6+ {[%emt 0:00:14]} Kxf7 {[%emt 0:03:05]} 37. Qd7+ {[%emt 0:00:05]} Kf6 {[%emt 0:00:03]} 38. Qxc8 {[%emt 0:00:44]} Qxg2+ {[%emt 0:00:10]} 39. Kxe3 {[%emt 0:00:05]} Qh3+ {[%emt 0:00:07]} 40. Qxh3 {[%emt 0:00:06]} 1-0

[Event "QCD-Prof Lim Kok Ann GM 2018"]
[Site "Singapore"]
[Date "2018.06.11"]
[Round "7"]
[White "Lee, Qing Aun"]
[Black "Gong, Qianyun"]
[Result "1/2-1/2"]
[ECO "C06"]
[WhiteElo "2339"]
[BlackElo "2300"]
[Annotator "NA"]
[PlyCount "111"]
[EventDate "2018.06.12"]
[EventType "tourn"]
[SourceTitle "playchess.com"]
[Source "ChessBase"]
[SourceQuality "1"]
[TimeControl "5400+30"]

1. e4 {[%emt 0:01:02]} e6 {[%emt 0:00:08]} 2. d4 {[%emt 0:00:10]} d5 {[%emt 0:00:04]} 3. Nd2 {[%emt 0:00:12]} b6 {[%emt 0:00:08]} 4. Bd3 {[%emt 0:05:12]} Nf6 {[%emt 0:01:06]} 5. e5 {[%emt 0:00:36]} Nfd7 {[%emt 0:00:05]} 6. c3 {[%emt 0:00:11]} c5 {[%emt 0:00:23]} 7. Nh3 {[%emt 0:00:49]} Be7 {[%emt 0:17:22]} 8. Qg4 {[%emt 0:01:41]} g6 {[%emt 0:10:22]} 9. O-O {[%emt 0:01:54]} Ba6 {[%emt 0:02:18]} 10. Bxa6 {[%emt 0:00:55]} Nxa6 {[%emt 0:00:03]} 11. Nf3 {[%emt 0:00:14]} h6 {[%emt 0:01:34]} 12. Nf4 {[%emt 0:04:21]} Nf8 {[%emt 0:01:20]} 13. dxc5 {[%emt 0:03:47]} Nxc5 {[%emt 0:00:53]} 14. Nd4 {[%emt 0:00:33]} Qc7 {[%emt 0:06:32]} 15. Qe2 {[%emt 0:01:41]} a6 {[%emt 0:08:53]} 16. a4 {[%emt 0:04:41]} Ncd7 {[%emt 0:10:52]} 17. Re1 {[%emt 0:02:09]} Qc4 {[%emt 0:02:08]} 18. Qd1 {[%emt 0:04:46]} Rc8 {[%emt 0:02:24]} 19. Bd2 {[%emt 0:02:08]} Qc7 {[%emt 0:04:33]} 20. Qe2 {[%emt 0:04:51]} Qc4 {[%emt 0:02:06]} 21. Qd1 {[%emt 0:03:15]} Qc7 {[%emt 0:00:07]} 22. Nf3 {[%emt 0:04:04]} Nc5 {[%emt 0:01:34]} 23. Be3 {[%emt 0:00:25]} Nh7 {[%emt 0:04:28]} 24. Bd4 {[%emt 0:07:35]} Ng5 {[%emt 0:00:18]} 25. Nd2 {[%emt 0:01:30]} Nge4 {[%emt 0:02:02]} 26. Nxe4 {[%emt 0:06:07]} Nxe4 {[%emt 0:00:35]} 27. Qd3 {[%emt 0:00:09]} Qb7 {[%emt 0:08:33]} 28. c4 {[%emt 0:01:18]} Nc5 {[%emt 0:00:12]} 29. Qc2 {[%emt 0:07:41]} dxc4 {[%emt 0:00:13]} 30. Qxc4 {[%emt 0:00:08]} O-O {[%emt 0:01:12]} 31. Qc2 {[%emt 0:00:13]} Bg5 {[%emt 0:02:26]} 32. Nh3 {[%emt 0:00:26]} Rfd8 {[%emt 0:01:03]} 33. Rad1 {[%emt 0:03:58]} Be7 {[%emt 0:00:06]} 34. b4 {[%emt 0:01:19]} Nd7 {[%emt 0:00:01]} 35. Qb3 {[%emt 0:00:08]} b5 {[%emt 0:00:09]} 36. a5 {[%emt 0:03:53]} Rc4 {[%emt 0:00:18]} 37. Bc3 {[%emt 0:02:59]} Qc7 {[%emt 0:00:04]} 38. Rd3 {[%emt 0:01:58]} Nb8 {[%emt 0:00:12]} 39. Rxd8+ {[%emt 0:02:21]} Qxd8 {[%emt 0:00:09]} 40. Rd1 {[%emt 0:01:08]} Qc7 {[%emt 0:00:19]} 41. Bd2 {[%emt 0:02:25]} Bf8 {[%emt 0:02:01]} 42. Nf4 {[%emt 0:04:45]} Qxe5 {[%emt 0:02:03]} 43. Nd3 {[%emt 0:00:50]} Qd5 {[%emt 0:02:04]} 44. Be3 {[%emt 0:01:06]} Qh5 {[%emt 0:02:27]} 45. Bc5 {[%emt 0:02:54]} Nc6 {[%emt 0:01:34]} 46. f3 {[%emt 0:01:46]} Nxa5 {[%emt 0:02:07]} 47. Qa2 {[%emt 0:01:35]} Bxc5+ {[%emt 0:01:13]} 48. Nxc5 {[%emt 0:00:19]} Nc6 {[%emt 0:01:52]} 49. Qxa6 {[%emt 0:01:42]} Nxb4 {[%emt 0:00:24]} 50. Qa8+ {[%emt 0:00:01]} Kh7 {[%emt 0:01:14]} 51. Ne4 {[%emt 0:03:38]} Nd5 {[%emt 0:00:43]} 52. Qf8 {[%emt 0:00:42]} Qf5 {[%emt 0:01:09]} 53. Nd6 {[%emt 0:00:16]} Qc2 {[%emt 0:00:13]} 54. Qxf7+ {[%emt 0:00:36]} Kh8 {[%emt 0:00:01]} 55. Ra1 {[%emt 0:01:17]} Ra4 {[%emt 0:00:12]} 56. Qf8+ {[%emt 0:00:34]} 1/2-1/2